[Event "29th Bosnjaci Open 2025"]
[Site "Bosnjaci"]
[Date "2025.01.07"]
[Round "7.11"]
[White "Glavas, Dragan"]
[Black "Konjevic, Nikola"]
[Result "1/2-1/2"]
[ECO "E35"]
[WhiteElo "2251"]
[BlackElo "2095"]
[Annotator "RC"]
[PlyCount "145"]
[EventDate "2025.01.04"]
[EventType "swiss"]
[EventCountry "CRO"]
[SourceTitle "playchess.com"]
[Source "ChessBase"]
[SourceQuality "1"]
[TimeControl "5400+30"]

1. d4 {[%emt 0:00:03]} Nf6 {[%emt 0:00:07]} 2. c4 {[%emt 0:00:09]} e6 {[%emt 0:00:06]} 3. Nc3 {[%emt 0:00:08]} Bb4 {[%emt 0:00:09]} 4. Qc2 {[%emt 0:00:09]} d5 {[%emt 0:00:28]} 5. cxd5 {[%emt 0:00:41]} exd5 {[%emt 0:00:13]} 6. Bg5 {[%emt 0:00:34]} h6 {[%emt 0:00:24]} 7. Bh4 {[%emt 0:00:07]} c5 {[%emt 0:01:09]} 8. e3 {[%emt 0:01:01]} cxd4 {[%emt 0:03:08]} 9. exd4 {[%emt 0:00:10]} Nc6 {[%emt 0:00:05]} 10. Bb5 {[%emt 0:03:08]} O-O {[%emt 0:08:15]} 11. Nge2 {[%emt 0:01:00]} Be6 {[%emt 0:12:23]} 12. O-O {[%emt 0:00:15]} Rc8 {[%emt 0:00:12]} 13. Rad1 {[%emt 0:06:55]} a6 {[%emt 0:05:24]} 14. Bxc6 {[%emt 0:06:13]} Rxc6 {[%emt 0:10:40]} 15. f3 {[%emt 0:09:29]} Be7 {[%emt 0:11:23]} 16. Rfe1 {[%emt 0:07:32]} Nh5 {[%emt 0:08:00]} 17. Bxe7 {[%emt 0:03:19]} Qxe7 {[%emt 0:00:03]} 18. Qd2 {[%emt 0:03:09]} Qc7 {[%emt 0:04:34]} 19. Rc1 {[%emt 0:07:47]} Rc8 {[%emt 0:04:15]} 20. Na4 {[%emt 0:02:21]} Rc2 {[%emt 0:02:20]} 21. Qe3 {[%emt 0:01:43]} Qa5 {[%emt 0:04:59]} 22. Nec3 {[%emt 0:02:37]} Rxc1 {[%emt 0:02:28]} 23. Rxc1 {[%emt 0:00:35]} Qc7 {[%emt 0:04:22]} 24. Ne2 {[%emt 0:07:17]} Qd8 {[%emt 0:00:47]} 25. Nc5 {[%emt 0:00:17]} Qb6 {[%emt 0:02:28]} 26. Qd2 {[%emt 0:02:10]} Nf6 {[%emt 0:00:58]} 27. Rc3 {[%emt 0:06:32]} Rc7 {[%emt 0:00:32]} 28. Nf4 {[%emt 0:02:52]} Bc8 {[%emt 0:00:41]} 29. Na4 {[%emt 0:03:03]} Qd6 {[%emt 0:00:51]} 30. Nd3 {[%emt 0:00:15]} b6 {[%emt 0:03:53]} 31. Qf4 {[%emt 0:05:49]} Qxf4 {[%emt 0:00:37]} 32. Nxf4 {[%emt 0:00:07]} Rxc3 {[%emt 0:00:22]} 33. bxc3 {[%emt 0:02:45]} b5 {[%emt 0:00:26]} 34. Nc5 {[%emt 0:00:49]} Kf8 {[%emt 0:00:32]} 35. Nfd3 {[%emt 0:00:32]} Ne8 {[%emt 0:02:57]} 36. Nb4 {[%emt 0:01:21]} Nc7 {[%emt 0:00:01]} 37. Nc6 {[%emt 0:00:30]} Ke8 {[%emt 0:01:38]} 38. Kf2 {[%emt 0:00:30]} f6 {[%emt 0:02:17]} 39. Ke3 {[%emt 0:00:11]} Bd7 {[%emt 0:00:16]} 40. Nb4 {[%emt 0:00:27]} Bc8 {[%emt 0:00:24]} 41. Nbd3 {[%emt 0:00:57]} Ne6 {[%emt 0:00:36]} 42. Nxe6 {[%emt 0:00:14]} Bxe6 {[%emt 0:00:08]} 43. Nb4 {[%emt 0:02:54]} a5 {[%emt 0:00:10]} 44. Nc6 {[%emt 0:00:11]} a4 {[%emt 0:00:09]} 45. a3 {[%emt 0:02:40]} Bd7 {[%emt 0:00:31]} 46. Nb4 {[%emt 0:00:07]} Be6 {[%emt 0:00:03]} 47. f4 {[%emt 0:00:21]} Ke7 {[%emt 0:01:23]} 48. Kf3 {[%emt 0:02:20]} Kd6 {[%emt 0:01:46]} 49. g4 {[%emt 0:00:24]} g5 {[%emt 0:00:49]} 50. Nd3 {[%emt 0:04:52]} Bf7 {[%emt 0:00:57]} 51. Kg3 {[%emt 0:02:43]} Ke7 {[%emt 0:02:39]} 52. h4 {[%emt 0:00:25]} Be8 {[%emt 0:00:40]} 53. Nf2 {[%emt 0:01:04]} Kf7 {[%emt 0:00:10]} 54. Nd1 {[%emt 0:00:09]} Bc6 {[%emt 0:01:45]} 55. Ne3 {[%emt 0:00:20]} Bb7 {[%emt 0:00:36]} 56. Nf5 {[%emt 0:01:06]} Kg6 {[%emt 0:00:09]} 57. Ne3 {[%emt 0:02:18]} Bc6 {[%emt 0:00:47]} 58. Nc2 {[%emt 0:00:09]} Kg7 {[%emt 0:00:48]} 59. Nb4 {[%emt 0:00:12]} Bb7 {[%emt 0:00:07]} 60. Nd3 {[%emt 0:00:06]} Bc6 {[%emt 0:00:50]} 61. Nc5 {[%emt 0:00:10]} Kf7 {[%emt 0:00:23]} 62. Na6 {[%emt 0:01:30]} Bb7 {[%emt 0:00:29]} 63. Nc7 {[%emt 0:00:46]} Bc6 {[%emt 0:00:07]} 64. Na6 {[%emt 0:00:50]} Bb7 {[%emt 0:00:20]} 65. Nb4 {[%emt 0:00:05]} Kg7 {[%emt 0:00:30]} 66. Nc2 {[%emt 0:00:06]} Bc8 {[%emt 0:00:55]} 67. Ne3 {[%emt 0:00:18]} Be6 {[%emt 0:00:15]} 68. f5 {[%emt 0:01:34]} Bf7 {[%emt 0:00:09]} 69. Nc2 {[%emt 0:00:06]} Kf8 {[%emt 0:00:30]} 70. Nb4 {[%emt 0:00:32]} Ke7 {[%emt 0:00:19]} 71. Nc6+ {[%emt 0:00:12]} Kd6 {[%emt 0:00:25]} 72. Nb4 {[%emt 0:01:05]} Be8 {[%emt 0:00:18]} 73. h5 {[%emt 0:00:52]} 1/2-1/2

[Event "29th Bosnjaci Open 2025"]
[Site "Bosnjaci"]
[Date "2025.01.07"]
[Round "7.12"]
[White "Tomas, Ante"]
[Black "Grgantov, Marin"]
[Result "1/2-1/2"]
[ECO "A18"]
[WhiteElo "2084"]
[BlackElo "2191"]
[Annotator "RC"]
[PlyCount "115"]
[EventDate "2025.01.04"]
[EventType "swiss"]
[EventCountry "CRO"]
[SourceTitle "playchess.com"]
[Source "ChessBase"]
[SourceQuality "1"]
[TimeControl "5400+30"]

1. c4 {[%emt 0:00:09]} Nf6 {[%emt 0:00:19]} 2. Nc3 {[%emt 0:00:15]} e6 {[%emt 0:00:05]} 3. e4 {[%emt 0:00:19]} d5 {[%emt 0:00:05]} 4. e5 {[%emt 0:00:25]} d4 {[%emt 0:00:04]} 5. exf6 {[%emt 0:00:12]} dxc3 {[%emt 0:00:06]} 6. bxc3 {[%emt 0:00:20]} Qxf6 {[%emt 0:00:19]} 7. d4 {[%emt 0:00:14]} e5 {[%emt 0:09:45]} 8. Nf3 {[%emt 0:00:28]} exd4 {[%emt 0:10:30]} 9. Bg5 {[%emt 0:00:38]} Qe6+ {[%emt 0:05:10]} 10. Be2 {[%emt 0:02:06]} Be7 {[%emt 0:01:50]} 11. Nxd4 {[%emt 0:15:51]} Qd7 {[%emt 0:04:11]} 12. Bxe7 {[%emt 0:00:15]} Qxe7 {[%emt 0:00:18]} 13. O-O {[%emt 0:00:10]} O-O {[%emt 0:01:03]} 14. Bd3 {[%emt 0:02:43]} Qf6 {[%emt 0:07:35]} 15. Re1 {[%emt 0:10:59]} Na6 {[%emt 0:02:17]} 16. Qe2 {[%emt 0:18:33]} g6 {[%emt 0:11:18]} 17. Qe7 {[%emt 0:09:35]} Qxe7 {[%emt 0:10:07]} 18. Rxe7 {[%emt 0:00:02]} Nc5 {[%emt 0:00:54]} 19. Bc2 {[%emt 0:01:46]} c6 {[%emt 0:00:48]} 20. Rae1 {[%emt 0:02:36]} Rb8 {[%emt 0:00:20]} 21. f4 {[%emt 0:04:44]} Kg7 {[%emt 0:10:39]} 22. R1e5 {[%emt 0:07:49]} Kf6 {[%emt 0:03:16]} 23. Re8 {[%emt 0:01:01]} Rxe8 {[%emt 0:01:52]} 24. Rxe8 {[%emt 0:00:03]} Na6 {[%emt 0:00:27]} 25. Re5 {[%emt 0:07:51]} Nc7 {[%emt 0:05:58]} 26. Re1 {[%emt 0:05:06]} c5 {[%emt 0:04:28]} 27. Nb5 {[%emt 0:02:47]} Nxb5 {[%emt 0:00:47]} 28. cxb5 {[%emt 0:00:01]} Be6 {[%emt 0:03:04]} 29. Bb3 {[%emt 0:01:18]} c4 {[%emt 0:01:50]} 30. Bc2 {[%emt 0:00:21]} Rd8 {[%emt 0:00:04]} 31. Re2 {[%emt 0:00:50]} Bg4 {[%emt 0:00:29]} 32. Rf2 {[%emt 0:00:41]} Bf5 {[%emt 0:00:36]} 33. Re2 {[%emt 0:01:43]} Bxc2 34. Rxc2 Rd1+ {[%emt 0:02:41]} 35. Kf2 {[%emt 0:00:34]} b6 {[%emt 0:00:31]} 36. Re2 {[%emt 0:03:43]} Rc1 {[%emt 0:00:19]} 37. Ke3 {[%emt 0:01:25]} Rxc3+ {[%emt 0:00:17]} 38. Kd4 {[%emt 0:00:00]} Rc1 {[%emt 0:00:31]} 39. g4 {[%emt 0:00:31]} Rf1 {[%emt 0:00:50]} 40. Re4 {[%emt 0:01:50]} Rf2 {[%emt 0:00:25]} 41. a4 {[%emt 0:00:31]} Ra2 {[%emt 0:01:26]} 42. g5+ {[%emt 0:00:06]} Kg7 {[%emt 0:00:01]} 43. Kxc4 {[%emt 0:00:51]} Rxa4+ {[%emt 0:01:18]} 44. Kd5 {[%emt 0:00:01]} Ra2 {[%emt 0:01:44]} 45. Kc6 {[%emt 0:00:26]} Rxh2 {[%emt 0:00:59]} 46. Ra4 {[%emt 0:00:05]} Rf2 {[%emt 0:00:54]} 47. Rxa7 {[%emt 0:00:54]} Rxf4 {[%emt 0:00:05]} 48. Kxb6 {[%emt 0:00:10]} Rf5 {[%emt 0:00:21]} 49. Kc6 {[%emt 0:00:43]} Rxg5 {[%emt 0:00:01]} 50. b6 {[%emt 0:00:26]} Rg1 {[%emt 0:00:19]} 51. Ra5 {[%emt 0:00:03]} Rc1+ {[%emt 0:00:56]} 52. Rc5 {[%emt 0:00:02]} Re1 {[%emt 0:00:09]} 53. b7 {[%emt 0:01:59]} Re8 {[%emt 0:00:02]} 54. Kd7 {[%emt 0:00:27]} Rb8 {[%emt 0:00:01]} 55. Kc7 {[%emt 0:00:07]} Re8 {[%emt 0:02:05]} 56. Kd7 {[%emt 0:00:47]} Rb8 {[%emt 0:00:01]} 57. Kc7 {[%emt 0:00:05]} Re8 {[%emt 0:00:04]} 58. Kd7 {[%emt 0:01:05]} 1/2-1/2

[Event "29th Bosnjaci Open 2025"]
[Site "Bosnjaci"]
[Date "2025.01.07"]
[Round "7.13"]
[White "Vidovic, Sasa"]
[Black "Caric, Mato"]
[Result "1/2-1/2"]
[ECO "D01"]
[WhiteElo "2173"]
[BlackElo "2080"]
[Annotator "RC"]
[PlyCount "110"]
[EventDate "2025.01.04"]
[EventType "swiss"]
[EventCountry "CRO"]
[SourceTitle "playchess.com"]
[Source "ChessBase"]
[SourceQuality "1"]
[TimeControl "5400+30"]

1. d4 {[%emt 0:10:10]} Nf6 {[%emt 0:00:07]} 2. Nc3 {[%emt 0:00:05]} d5 {[%emt 0:01:54]} 3. Bg5 {[%emt 0:07:27]} g6 {[%emt 0:00:16]} 4. Qd2 {[%emt 0:00:05]} h6 {[%emt 0:07:45]} 5. Bf4 {[%emt 0:02:09]} Bg7 {[%emt 0:07:35]} 6. e3 {[%emt 0:13:39]} O-O {[%emt 0:03:43]} 7. Nf3 {[%emt 0:00:49]} c5 {[%emt 0:07:09]} 8. Be2 {[%emt 0:04:20]} Nc6 {[%emt 0:08:48]} 9. Ne5 {[%emt 0:06:26]} cxd4 {[%emt 0:13:05]} 10. exd4 {[%emt 0:06:18]} Nxe5 {[%emt 0:07:59]} 11. Bxe5 {[%emt 0:04:39]} Qb6 {[%emt 0:11:51]} 12. Bxf6 {[%emt 0:05:28]} Bxf6 {[%emt 0:00:33]} 13. Nxd5 {[%emt 0:01:05]} Qxd4 {[%emt 0:07:28]} 14. Nxe7+ {[%emt 0:07:54]} Kg7 {[%emt 0:00:05]} 15. Qxd4 {[%emt 0:00:16]} Bxd4 {[%emt 0:00:06]} 16. c3 {[%emt 0:00:36]} Bc5 {[%emt 0:00:18]} 17. Nxc8 {[%emt 0:00:54]} Raxc8 {[%emt 0:00:06]} 18. O-O {[%emt 0:00:34]} a5 {[%emt 0:02:27]} 19. Rfd1 {[%emt 0:04:42]} Rcd8 {[%emt 0:01:04]} 20. a3 {[%emt 0:04:02]} Be7 {[%emt 0:06:33]} 21. Kf1 {[%emt 0:02:58]} Kf6 {[%emt 0:03:16]} 22. Bf3 {[%emt 0:03:37]} b6 {[%emt 0:00:06]} 23. Bd5 {[%emt 0:02:03]} Rd7 {[%emt 0:01:37]} 24. Rd3 {[%emt 0:02:08]} Kg7 {[%emt 0:01:34]} 25. Rad1 {[%emt 0:01:32]} Rfd8 {[%emt 0:00:13]} 26. Ke2 {[%emt 0:01:14]} Bc5 {[%emt 0:02:13]} 27. b4 {[%emt 0:00:51]} axb4 {[%emt 0:00:13]} 28. axb4 {[%emt 0:00:14]} Be7 {[%emt 0:00:04]} 29. Bb3 {[%emt 0:01:54]} Rxd3 {[%emt 0:02:53]} 30. Rxd3 {[%emt 0:00:05]} Kf8 {[%emt 0:01:11]} 31. Rf3 {[%emt 0:03:38]} f6 {[%emt 0:00:42]} 32. Re3 {[%emt 0:00:23]} Rd6 {[%emt 0:01:12]} 33. h3 {[%emt 0:00:37]} f5 {[%emt 0:00:28]} 34. Rd3 {[%emt 0:00:52]} Rxd3 {[%emt 0:01:21]} 35. Kxd3 {[%emt 0:00:06]} Bf6 {[%emt 0:00:01]} 36. c4 {[%emt 0:00:27]} Ke7 {[%emt 0:00:16]} 37. c5 {[%emt 0:00:04]} bxc5 {[%emt 0:00:08]} 38. bxc5 {[%emt 0:00:05]} Be5 {[%emt 0:00:05]} 39. Kc4 {[%emt 0:00:16]} g5 {[%emt 0:00:27]} 40. Kd5 {[%emt 0:00:05]} Bc7 {[%emt 0:00:05]} 41. Bc2 {[%emt 0:03:05]} f4 {[%emt 0:00:12]} 42. Bd1 {[%emt 0:00:38]} Bb8 {[%emt 0:00:15]} 43. Kc6 {[%emt 0:00:43]} Be5 {[%emt 0:00:39]} 44. f3 {[%emt 0:00:40]} Ke6 {[%emt 0:02:08]} 45. Kb7 {[%emt 0:00:42]} Kd7 {[%emt 0:00:09]} 46. Ba4+ {[%emt 0:00:10]} Kd8 {[%emt 0:00:14]} 47. Kc6 {[%emt 0:00:07]} Bc7 {[%emt 0:00:45]} 48. Bb3 {[%emt 0:00:43]} Bb8 {[%emt 0:00:09]} 49. Bf7 {[%emt 0:00:36]} Bc7 {[%emt 0:00:07]} 50. Bh5 {[%emt 0:00:07]} Bb8 {[%emt 0:00:06]} 51. Bg4 {[%emt 0:00:19]} Bc7 {[%emt 0:00:06]} 52. Kd5 {[%emt 0:00:11]} Ke7 {[%emt 0:00:06]} 53. Ke4 {[%emt 0:00:26]} Kf6 {[%emt 0:00:06]} 54. h4 {[%emt 0:00:24]} gxh4 {[%emt 0:00:58]} 55. Kd5 {[%emt 0:00:05]} Ke7 {[%emt 0:00:05]} 1/2-1/2

[Event "29th Bosnjaci Open 2025"]
[Site "Bosnjaci"]
[Date "2025.01.07"]
[Round "7.14"]
[White "Djuric, Leon"]
[Black "Petricevic, Mateo"]
[Result "1/2-1/2"]
[ECO "C10"]
[WhiteElo "2145"]
[BlackElo "2060"]
[Annotator "RC"]
[PlyCount "68"]
[EventDate "2025.01.04"]
[EventType "swiss"]
[EventCountry "CRO"]
[SourceTitle "playchess.com"]
[Source "ChessBase"]
[SourceQuality "1"]
[TimeControl "5400+30"]

1. e4 {[%emt 0:00:04]} e6 {[%emt 0:00:23]} 2. d4 {[%emt 0:00:06]} d5 {[%emt 0:00:04]} 3. Nc3 {[%emt 0:00:05]} h6 {[%emt 0:02:59]} 4. Nf3 {[%emt 0:01:25]} Nf6 {[%emt 0:00:06]} 5. e5 {[%emt 0:09:38]} Ne4 {[%emt 0:00:27]} 6. Bd3 {[%emt 0:03:57]} Nxc3 {[%emt 0:00:21]} 7. bxc3 {[%emt 0:00:02]} c5 {[%emt 0:00:22]} 8. O-O {[%emt 0:00:35]} c4 {[%emt 0:00:53]} 9. Be2 {[%emt 0:00:09]} Qa5 {[%emt 0:00:18]} 10. Bd2 {[%emt 0:03:40]} Qa4 {[%emt 0:03:43]} 11. Ne1 {[%emt 0:02:26]} Nc6 {[%emt 0:09:05]} 12. f4 {[%emt 0:01:31]} g6 {[%emt 0:02:11]} 13. g4 {[%emt 0:02:34]} Ne7 {[%emt 0:14:10]} 14. Ng2 {[%emt 0:01:52]} Bd7 {[%emt 0:02:33]} 15. Ne3 {[%emt 0:01:24]} O-O-O {[%emt 0:04:09]} 16. Bf3 {[%emt 0:05:36]} Be8 {[%emt 0:18:34]} 17. Kh1 {[%emt 0:08:14]} Nc6 {[%emt 0:12:18]} 18. Qe2 {[%emt 0:06:10]} a6 {[%emt 0:05:24]} 19. Rab1 {[%emt 0:14:18]} Na7 {[%emt 0:01:44]} 20. Bg2 {[%emt 0:06:39]} Nb5 {[%emt 0:01:24]} 21. f5 {[%emt 0:09:04]} Be7 {[%emt 0:00:42]} 22. Rb2 {[%emt 0:05:55]} Ba3 {[%emt 0:02:20]} 23. Rbb1 {[%emt 0:00:04]} Be7 {[%emt 0:00:04]} 24. Qf3 {[%emt 0:01:33]} Kb8 {[%emt 0:03:37]} 25. Bh3 {[%emt 0:06:07]} g5 {[%emt 0:00:22]} 26. Bg2 {[%emt 0:00:17]} Ka7 {[%emt 0:00:21]} 27. Kg1 {[%emt 0:00:51]} Rg8 {[%emt 0:01:03]} 28. Rfc1 {[%emt 0:00:53]} Rf8 {[%emt 0:02:22]} 29. Nd1 {[%emt 0:00:51]} Rc8 {[%emt 0:00:59]} 30. Nb2 {[%emt 0:02:02]} Qa3 {[%emt 0:00:25]} 31. Nd1 {[%emt 0:02:21]} Qa4 {[%emt 0:00:05]} 32. Nb2 {[%emt 0:00:05]} Qa3 {[%emt 0:00:23]} 33. Nd1 {[%emt 0:00:15]} Qa4 {[%emt 0:00:38]} 34. Ne3 {[%emt 0:02:30]} Rd8 {[%emt 0:00:55]} 1/2-1/2

[Event "29th Bosnjaci Open 2025"]
[Site "Bosnjaci"]
[Date "2025.01.07"]
[Round "7.15"]
[White "Jusup, Matej"]
[Black "Mandalinic, David"]
[Result "1/2-1/2"]
[ECO "D02"]
[WhiteElo "2238"]
[BlackElo "1982"]
[Annotator "RC"]
[PlyCount "109"]
[EventDate "2025.01.04"]
[EventType "swiss"]
[EventCountry "CRO"]
[SourceTitle "playchess.com"]
[Source "ChessBase"]
[SourceQuality "1"]
[TimeControl "5400+30"]

1. d4 {[%emt 0:00:04]} d5 {[%emt 0:01:10]} 2. Bf4 {[%emt 0:00:06]} Nf6 {[%emt 0:00:20]} 3. e3 {[%emt 0:00:05]} e6 {[%emt 0:00:31]} 4. Nf3 {[%emt 0:00:25]} c5 {[%emt 0:00:09]} 5. Nbd2 {[%emt 0:00:11]} Nc6 {[%emt 0:00:28]} 6. c3 {[%emt 0:00:38]} cxd4 {[%emt 0:01:42]} 7. exd4 {[%emt 0:00:08]} Bd6 {[%emt 0:00:41]} 8. Bxd6 {[%emt 0:03:37]} Qxd6 {[%emt 0:00:07]} 9. Bb5 {[%emt 0:00:28]} Bd7 {[%emt 0:01:10]} 10. O-O {[%emt 0:00:16]} O-O {[%emt 0:02:04]} 11. Re1 {[%emt 0:00:45]} Ne7 {[%emt 0:04:28]} 12. Bd3 {[%emt 0:00:58]} Ng6 {[%emt 0:03:54]} 13. Bxg6 {[%emt 0:02:10]} hxg6 {[%emt 0:01:26]} 14. Ne5 {[%emt 0:00:15]} b5 {[%emt 0:05:47]} 15. Nd3 {[%emt 0:07:37]} a5 {[%emt 0:02:15]} 16. a3 {[%emt 0:06:47]} Rfc8 {[%emt 0:13:14]} 17. Nb3 {[%emt 0:05:42]} Be8 {[%emt 0:09:46]} 18. Nbc5 {[%emt 0:04:29]} Nd7 {[%emt 0:01:10]} 19. Nxd7 {[%emt 0:08:31]} Bxd7 {[%emt 0:05:58]} 20. Qg4 {[%emt 0:11:45]} b4 {[%emt 0:02:50]} 21. axb4 {[%emt 0:01:07]} Bb5 {[%emt 0:00:09]} 22. Nc5 {[%emt 0:00:35]} axb4 {[%emt 0:00:22]} 23. cxb4 {[%emt 0:00:20]} Qd8 {[%emt 0:03:07]} 24. Ra3 {[%emt 0:02:44]} Qb6 {[%emt 0:04:07]} 25. Rh3 {[%emt 0:04:40]} Qd8 {[%emt 0:01:02]} 26. Ra3 {[%emt 0:03:34]} Qb6 {[%emt 0:00:15]} 27. Qh4 {[%emt 0:02:21]} Qd8 {[%emt 0:01:12]} 28. Qf4 {[%emt 0:01:02]} Qf6 {[%emt 0:01:25]} 29. Qd2 {[%emt 0:01:24]} Rab8 {[%emt 0:06:48]} 30. Ra7 {[%emt 0:02:43]} Bc6 {[%emt 0:04:13]} 31. Rea1 {[%emt 0:06:09]} Qf5 {[%emt 0:00:39]} 32. h3 {[%emt 0:05:00]} Qf6 {[%emt 0:05:42]} 33. R1a3 {[%emt 0:02:11]} Be8 {[%emt 0:02:50]} 34. Rf3 {[%emt 0:03:23]} Qh4 {[%emt 0:01:12]} 35. g3 {[%emt 0:07:35]} Qxh3 {[%emt 0:01:49]} 36. Qf4 {[%emt 0:00:04]} Qf5 {[%emt 0:00:11]} 37. Qe3 {[%emt 0:00:10]} Qh3 {[%emt 0:02:19]} 38. Qe1 {[%emt 0:05:38]} Ra8 {[%emt 0:03:03]} 39. Re7 {[%emt 0:01:08]} Ra2 {[%emt 0:02:25]} 40. Qb1 {[%emt 0:01:42]} Raa8 {[%emt 0:01:51]} 41. Qe1 {[%emt 0:01:12]} Ra2 {[%emt 0:00:23]} 42. Qb1 {[%emt 0:01:06]} Raa8 {[%emt 0:00:19]} 43. Ra3 {[%emt 0:00:32]} Rab8 {[%emt 0:00:39]} 44. Qe1 {[%emt 0:00:11]} Qg4 {[%emt 0:00:57]} 45. Qc3 {[%emt 0:00:36]} Qd1+ {[%emt 0:00:35]} 46. Kg2 {[%emt 0:00:04]} Bb5 {[%emt 0:00:33]} 47. Qf3 {[%emt 0:01:01]} Qxf3+ {[%emt 0:02:51]} 48. Kxf3 {[%emt 0:00:03]} Be8 {[%emt 0:00:18]} 49. Rb7 {[%emt 0:01:01]} Bc6 {[%emt 0:00:24]} 50. Rxb8 {[%emt 0:00:33]} Rxb8 {[%emt 0:00:02]} 51. Ra6 {[%emt 0:00:39]} Be8 {[%emt 0:01:07]} 52. Ke3 {[%emt 0:00:29]} Rxb4 {[%emt 0:02:06]} 53. Ra8 {[%emt 0:00:04]} Kf8 {[%emt 0:00:08]} 54. b3 {[%emt 0:00:08]} Ke7 {[%emt 0:00:35]} 55. Ra7+ {[%emt 0:00:13]} 1/2-1/2